[Event "NJSK 2018 Meisjes AB"]
[Site "Assen, Netherlands"]
[Date "2018.05.03"]
[Round "5.7"]
[White "De Boer, Marit"]
[Black "Monteny, Pascalle"]
[Result "1-0"]
[TimeControl "40/90m+30m+30sec/move"]
[WhiteElo "1446"]
[BlackElo "1446"]

1. c4 {[%clk 01:30:58]} {[%emt 00:00:01]} e5 {[%clk 01:28:05]} {[%emt
00:02:55]} 2. g3 {[%clk 01:31:18]} {[%emt 00:00:10]} Nc6 {[%clk 01:27:20]}
{[%emt 00:01:15]} 3. Bg2 {[%clk 01:31:35]} {[%emt 00:00:13]} d6 {[%clk
01:26:42]} {[%emt 00:01:08]} 4. Nc3 {[%clk 01:30:33]} {[%emt 00:01:32]} f5
{[%clk 01:21:52]} {[%emt 00:05:20]} 5. b3 {[%clk 01:27:56]} {[%emt 00:03:08]}
Nf6 {[%clk 01:20:39]} {[%emt 00:01:42]} 6. e3 {[%clk 01:27:16]} {[%emt
00:01:10]} Be7 {[%clk 01:18:26]} {[%emt 00:02:43]} 7. Nge2 {[%clk 01:27:24]}
{[%emt 00:00:22]} O-O {[%clk 01:16:11]} {[%emt 00:02:45]} 8. O-O {[%clk
01:26:49]} {[%emt 00:01:06]} Be6 {[%clk 01:02:43]} {[%emt 00:13:58]} 9. Bb2
{[%clk 01:22:16]} {[%emt 00:05:02]} d5 {[%clk 00:53:21]} {[%emt 00:09:53]} 10.
d3 {[%clk 01:13:40]} {[%emt 00:09:05]} Qd7 {[%clk 00:46:52]} {[%emt 00:06:59]}
11. a3 {[%clk 01:04:32]} {[%emt 00:09:37]} Rad8 {[%clk 00:39:58]} {[%emt
00:07:25]} 12. Rc1 {[%clk 01:01:00]} {[%emt 00:04:02]} dxc4 {[%clk 00:32:05]}
{[%emt 00:08:23]} 13. dxc4 {[%clk 01:00:24]} {[%emt 00:01:06]} Qe8 {[%clk
00:27:31]} {[%emt 00:05:03]} 14. Qc2 {[%clk 00:59:18]} {[%emt 00:01:36]} Qh5
{[%clk 00:23:49]} {[%emt 00:04:13]} 15. Nb5 {[%clk 00:48:48]} {[%emt 00:11:00]}
Rd7 {[%clk 00:14:15]} {[%emt 00:10:04]} 16. Rfd1 {[%clk 00:43:14]} {[%emt
00:06:04]} Rfd8 {[%clk 00:09:36]} {[%emt 00:05:10]} 17. Rxd7 {[%clk 00:40:57]}
Rxd7 {[%clk 00:09:53]} {[%emt 00:02:59]} 18. Bxc6 {[%clk 00:38:31]} {[%emt
00:02:56]} bxc6 {[%clk 00:10:11]} {[%emt 00:00:11]} 19. Nxa7 {[%clk 00:38:38]}
{[%emt 00:00:24]} Ng4 {[%clk 00:06:43]} {[%emt 00:03:58]} 20. h4 {[%clk
00:32:13]} {[%emt 00:06:54]} c5 {[%clk 00:04:54]} {[%emt 00:02:20]} 21. Kg2
{[%clk 00:28:09]} {[%emt 00:04:32]} g5 {[%clk 00:03:20]} {[%emt 00:02:06]} 22.
Nc3 {[%clk 00:22:45]} {[%emt 00:05:54]} gxh4 {[%emt 00:04:01]} 23. Rh1 {[%clk
00:19:54]} Qg6 {[%clk 00:03:17]} {[%emt 00:00:22]} 24. Kf3 {[%clk 00:18:38]}
{[%emt 00:01:44]} hxg3 {[%clk 00:03:00]} {[%emt 00:00:50]} 25. fxg3 {[%clk
00:18:48]} {[%emt 00:00:20]} Bg5 {[%clk 00:02:14]} {[%emt 00:01:16]} 26. Bc1
{[%clk 00:18:13]} {[%emt 00:01:05]} e4+ {[%clk 00:02:15]} {[%emt 00:00:30]} 27.
Ke2 {[%clk 00:18:00]} {[%emt 00:00:42]} Rd3 {[%clk 00:02:01]} {[%emt 00:00:44]}
28. Nd1 {[%clk 00:18:11]} {[%emt 00:00:19]} Qf6 {[%clk 00:01:27]} {[%emt
00:01:04]} 29. Qb2 {[%clk 00:14:53]} {[%emt 00:03:48]} Qd8 {[%clk 00:00:50]}
{[%emt 00:01:05]} 30. Qc2 {[%clk 00:11:42]} {[%emt 00:03:43]} Qd6 {[%clk
00:00:55]} {[%emt 00:00:25]} 31. Rh3 {[%clk 00:11:35]} {[%emt 00:00:35]} Qe7
{[%clk 00:00:43]} {[%emt 00:00:44]} 32. a4 {[%clk 00:10:19]} {[%emt 00:01:47]}
Bf7 {[%clk 00:00:42]} {[%emt 00:00:31]} 33. a5 {[%clk 00:10:18]} {[%emt
00:00:30]} Qe6 {[%clk 00:00:37]} {[%emt 00:00:35]} 34. Nb5 {[%clk 00:09:44]}
{[%emt 00:01:04]} Qc6 {[%clk 00:00:39]} {[%emt 00:00:28]} 35. Qa2 {[%clk
00:09:41]} {[%emt 00:00:33]} Qa6 {[%clk 00:00:37]} {[%emt 00:00:31]} 36. Nxc7
{[%clk 00:09:48]} {[%emt 00:00:24]} Qa7 {[%clk 00:00:45]} {[%emt 00:00:21]} 37.
a6 {[%clk 00:09:04]} {[%emt 00:01:15]} Rd8 {[%clk 00:00:43]} {[%emt 00:00:33]}
38. Qa5 {[%clk 00:08:39]} {[%emt 00:00:55]} Rc8 {[%clk 00:00:42]} {[%emt
00:00:31]} 39. Nb5 {[%clk 00:08:56]} {[%emt 00:00:13]} Qa8 {[%clk 00:00:48]}
{[%emt 00:00:23]} 40. a7 {[%clk 00:08:54]} {[%emt 00:00:32]} Bd8 {[%clk
00:00:38]} {[%emt 00:00:39]} 41. Qa6 {[%clk 00:08:10]} {[%emt 00:01:14]} Rc6
{[%clk 00:24:42]} {[%emt 00:06:26]} 42. Qa1 {[%clk 00:37:43]} {[%emt 00:00:58]}
Bf6 {[%clk 00:17:34]} {[%emt 00:07:38]} 43. Bb2 {[%clk 00:34:41]} {[%emt
00:03:32]} Bxb2 {[%clk 00:15:52]} 44. Nxb2 {[%clk 00:34:32]} {[%emt 00:02:51]}
Ne5 {[%clk 00:12:53]} {[%emt 00:03:29]} 45. Qa5 {[%clk 00:32:41]} {[%emt
00:02:21]} Rc8 {[%clk 00:01:22]} {[%emt 00:12:02]} 46. Nc7 {[%clk 00:32:30]}
{[%emt 00:00:41]} Qb7 {[%clk 00:00:41]} {[%emt 00:01:11]} 47. a8=Q {[%clk
00:32:39]} {[%emt 00:00:20]} Rxa8 {[%clk 00:00:39]} {[%emt 00:00:32]} 48. Qxa8+
{[%clk 00:33:01]} {[%emt 00:00:08]} Qxa8 {[%clk 00:00:49]} {[%emt 00:00:20]} 49.
Nxa8 {[%clk 00:33:25]} {[%emt 00:00:06]} Nd7 {[%clk 00:00:47]} {[%emt
00:00:32]} 50. Na4 {[%clk 00:33:24]} {[%emt 00:00:30]} h5 {[%clk 00:00:43]}
{[%emt 00:00:34]} 51. N8b6 {[%clk 00:33:44]} {[%emt 00:00:10]} Ne5 {[%clk
00:00:46]} {[%emt 00:00:28]} 52. Nxc5 {[%clk 00:33:57]} {[%emt 00:00:17]} Nc6
{[%clk 00:00:45]} {[%emt 00:00:30]} 53. Nd5 {[%clk 00:33:49]} {[%emt 00:00:38]}
Kf8 {[%clk 00:00:43]} {[%emt 00:00:33]} 54. b4 {[%clk 00:33:56]} {[%emt
00:00:23]} Bxd5 {[%clk 00:00:38]} {[%emt 00:00:35]} 55. cxd5 {[%clk 00:34:18]}
{[%emt 00:00:08]} Nxb4 {[%clk 00:01:06]} {[%emt 00:00:02]} 56. Rxh5 {[%clk
00:34:32]} {[%emt 00:00:16]} Nxd5 {[%clk 00:01:28]} {[%emt 00:00:08]} 57. Rxf5+
{[%clk 00:34:52]} {[%emt 00:00:09]} Ke7 {[%clk 00:01:52]} {[%emt 00:00:07]} 58.
Rxd5 {[%clk 00:35:13]} {[%emt 00:00:09]} Kf6 {[%clk 00:02:11]} {[%emt
00:00:11]} 59. g4 {[%clk 00:35:33]} {[%emt 00:00:10]} Kg6 {[%clk 00:02:35]}
{[%emt 00:00:06]} 60. Kf2 {[%clk 00:35:53]} {[%emt 00:00:09]} Kf6 {[%clk
00:02:54]} {[%emt 00:00:11]} 61. Kg3 {[%clk 00:36:18]} {[%emt 00:00:06]} Kg6
{[%clk 00:03:12]} {[%emt 00:00:12]} 62. Kf4 {[%clk 00:36:38]} {[%emt 00:00:09]}
Kf6 {[%clk 00:03:35]} {[%emt 00:00:08]} 63. Rd6+ {[%clk 00:36:55]} {[%emt
00:00:13]} Ke7 {[%clk 00:03:44]} {[%emt 00:00:19]} 64. Ke5 {[%clk 00:37:20]}
{[%emt 00:00:07]} Kf7 {[%clk 00:04:06]} {[%emt 00:00:07]} 65. Kf5 {[%clk
00:37:35]} {[%emt 00:00:15]} Ke7 {[%clk 00:04:19]} {[%emt 00:00:17]} 66. Rd7+
{[%clk 00:37:59]} {[%emt 00:00:07]} Kf8 {[%clk 00:04:17]} {[%emt 00:00:31]} 67.
Ke6 {[%clk 00:38:13]} {[%emt 00:00:16]} Ke8 {[%clk 00:04:26]} {[%emt 00:00:22]}
68. Kf6 {[%clk 00:38:25]} {[%emt 00:00:17]} Kf8 {[%clk 00:04:51]} {[%emt
00:00:05]} 69. Rd8# {[%clk 00:38:46]} {[%emt 00:00:10]} 1-0

[Event "NJSK 2018 Meisjes AB"]
[Site "Assen, Netherlands"]
[Date "2018.05.04"]
[Round "6.1"]
[White "Adema, Marrit"]
[Black "Duson, Robin"]
[Result "0-1"]
[TimeControl "40/90m+30m+30sec/move"]
[WhiteElo "1497"]
[BlackElo "1920"]

1. d4 {[%clk 01:30:57]} {[%emt 00:00:02]} Nf6 {[%clk 01:30:48]} {[%emt
00:00:11]} 2. c4 {[%clk 01:31:23]} {[%emt 00:00:05]} e6 {[%clk 01:31:13]}
{[%emt 00:00:05]} 3. Nc3 {[%clk 01:31:50]} {[%emt 00:00:04]} Bb4 {[%clk
01:31:28]} {[%emt 00:00:15]} 4. e3 {[%clk 01:32:13]} {[%emt 00:00:06]} O-O
{[%clk 01:31:37]} {[%emt 00:00:21]} 5. Bd3 {[%clk 01:32:39]} {[%emt 00:00:04]}
d5 {[%clk 01:31:46]} {[%emt 00:00:21]} 6. Nge2 {[%clk 01:32:47]} {[%emt
00:00:22]} dxc4 {[%clk 01:30:08]} {[%emt 00:02:08]} 7. Bxc4 {[%clk 01:32:55]}
{[%emt 00:00:21]} e5 {[%clk 01:29:56]} {[%emt 00:00:43]} 8. Qc2 {[%clk
01:28:03]} {[%emt 00:05:23]} exd4 {[%clk 01:24:34]} {[%emt 00:05:52]} 9. Nxd4
{[%clk 01:27:12]} {[%emt 00:01:20]} c5 {[%clk 01:19:52]} {[%emt 00:05:11]} 10.
Nf3 {[%clk 01:22:52]} {[%emt 00:04:52]} Nc6 {[%clk 01:16:14]} {[%emt 00:04:07]}
11. O-O {[%clk 01:20:05]} {[%emt 00:03:18]} Bxc3 {[%clk 01:08:05]} {[%emt
00:08:39]} 12. Qxc3 {[%clk 01:18:23]} {[%emt 00:02:12]} Bf5 {[%clk 01:05:21]}
{[%emt 00:03:13]} 13. a3 {[%clk 00:59:56]} {[%emt 00:18:58]} Ne4 {[%clk
01:02:18]} {[%emt 00:03:32]} 14. Qe1 {[%clk 00:57:56]} {[%emt 00:02:31]} Na5
{[%clk 00:54:28]} {[%emt 00:08:19]} 15. Ba2 {[%clk 00:56:40]} {[%emt 00:01:47]}
Qb6 {[%clk 00:48:10]} {[%emt 00:06:47]} 16. b4 {[%clk 00:50:50]} {[%emt
00:06:21]} Nc6 {[%clk 00:45:47]} {[%emt 00:02:52]} 17. Rb1 {[%clk 00:48:39]}
{[%emt 00:02:40]} cxb4 {[%clk 00:45:36]} {[%emt 00:00:42]} 18. axb4 {[%clk
00:48:45]} {[%emt 00:00:25]} Nd6 {[%clk 00:44:32]} {[%emt 00:01:33]} 19. Rb2
{[%clk 00:46:59]} {[%emt 00:02:17]} Bd3 {[%clk 00:41:16]} {[%emt 00:03:46]} 20.
Qc3 {[%clk 00:39:57]} {[%emt 00:07:31]} Bxf1 {[%clk 00:40:46]} {[%emt
00:00:59]} 21. Kxf1 {[%clk 00:40:21]} {[%emt 00:00:06]} Rac8 {[%clk 00:37:45]}
{[%emt 00:03:31]} 22. Qd3 {[%clk 00:37:51]} {[%emt 00:03:01]} Qb5 {[%clk
00:35:59]} {[%emt 00:02:15]} 0-1

[Event "NJSK 2018 Meisjes AB"]
[Site "Assen, Netherlands"]
[Date "2018.05.04"]
[Round "6.3"]
[White "Waardenburg, Feline"]
[Black "Den Dunnen, Lola"]
[Result "0-1"]
[TimeControl "40/90m+30m+30sec/move"]
[WhiteElo "1737"]
[BlackElo "1912"]

1. d4 {[%clk 01:30:58]} {[%emt 00:00:03]} Nf6 {[%clk 01:30:54]} {[%emt
00:00:05]} 2. c4 {[%clk 01:31:20]} {[%emt 00:00:08]} e6 {[%clk 01:31:19]}
{[%emt 00:00:04]} 3. Nc3 {[%clk 01:31:40]} {[%emt 00:00:10]} Bb4 {[%clk
01:31:44]} {[%emt 00:00:06]} 4. Bd2 {[%clk 01:31:09]} {[%emt 00:01:01]} c5
{[%clk 01:32:00]} {[%emt 00:00:14]} 5. a3 {[%clk 01:29:11]} {[%emt 00:02:28]}
Bxc3 {[%clk 01:31:31]} {[%emt 00:00:59]} 6. Bxc3 {[%clk 01:28:49]} {[%emt
00:00:51]} Ne4 {[%clk 01:31:34]} {[%emt 00:00:27]} 7. Qc2 {[%clk 01:28:22]}
{[%emt 00:00:57]} Nxc3 {[%clk 01:30:47]} {[%emt 00:01:17]} 8. Qxc3 {[%clk
01:28:15]} {[%emt 00:00:37]} cxd4 {[%clk 01:29:09]} {[%emt 00:02:08]} 9. Qxd4
{[%clk 01:27:31]} {[%emt 00:01:14]} O-O {[%clk 01:28:46]} {[%emt 00:00:53]} 10.
Nf3 {[%clk 01:24:38]} {[%emt 00:03:24]} d6 {[%clk 01:22:19]} {[%emt 00:06:56]}
11. e3 {[%clk 01:16:36]} {[%emt 00:08:32]} Nc6 {[%clk 01:21:40]} {[%emt
00:01:10]} 12. Qc3 {[%clk 01:15:24]} {[%emt 00:01:41]} Qe7 {[%clk 01:17:40]}
{[%emt 00:04:31]} 13. Be2 {[%clk 01:14:01]} {[%emt 00:01:52]} b6 {[%clk
01:15:42]} {[%emt 00:02:28]} 14. O-O {[%clk 01:11:55]} {[%emt 00:02:36]} Bb7
{[%clk 01:15:50]} {[%emt 00:00:22]} 15. Rfd1 {[%clk 01:08:22]} {[%emt
00:04:03]} Rfd8 {[%clk 01:11:27]} {[%emt 00:04:53]} 16. Nd2 {[%clk 00:56:42]}
{[%emt 00:12:11]} Ne5 {[%clk 01:04:58]} {[%emt 00:06:58]} 17. f4 {[%clk
00:51:14]} {[%emt 00:05:58]} Ng6 {[%clk 01:03:34]} {[%emt 00:01:52]} 18. Rf1
{[%clk 00:51:15]} {[%emt 00:00:31]} f5 {[%clk 00:50:43]} {[%emt 00:13:21]} 19.
Nf3 {[%clk 00:48:21]} {[%emt 00:03:24]} e5 {[%clk 00:43:36]} {[%emt 00:08:07]}
20. Rad1 {[%clk 00:33:24]} {[%emt 00:15:57]} exf4 {[%clk 00:39:41]} {[%emt
00:04:26]} 21. Nd4 {[%clk 00:31:44]} {[%emt 00:02:10]} Qg5 {[%clk 00:36:04]}
{[%emt 00:04:06]} 22. Bf3 {[%clk 00:27:52]} {[%emt 00:04:22]} Bxf3 {[%clk
00:35:40]} {[%emt 00:00:54]} 23. Nxf3 {[%clk 00:26:43]} {[%emt 00:01:38]} Qg4
{[%clk 00:33:50]} {[%emt 00:02:20]} 24. exf4 {[%clk 00:22:51]} {[%emt
00:04:23]} Nxf4 {[%clk 00:31:58]} {[%emt 00:02:22]} 25. Qc2 {[%clk 00:22:03]}
{[%emt 00:01:17]} Re8 {[%clk 00:28:18]} {[%emt 00:04:11]} 26. Rd2 {[%clk
00:21:36]} {[%emt 00:00:58]} Re4 {[%clk 00:24:33]} {[%emt 00:04:13]} 27. c5
{[%clk 00:11:50]} {[%emt 00:10:18]} bxc5 {[%clk 00:20:57]} {[%emt 00:04:05]} 28.
Qb3+ {[%clk 00:09:52]} {[%emt 00:02:28]} c4 {[%clk 00:18:46]} {[%emt 00:02:41]}
29. Qc2 {[%clk 00:07:59]} {[%emt 00:02:23]} d5 {[%clk 00:16:11]} {[%emt
00:03:04]} 30. Nd4 {[%clk 00:06:06]} {[%emt 00:02:24]} Rxd4 {[%clk 00:13:10]}
{[%emt 00:03:31]} 31. Rxd4 {[%clk 00:04:38]} {[%emt 00:01:59]} Ne2+ {[%clk
00:13:34]} {[%emt 00:00:05]} 32. Kh1 {[%clk 00:04:55]} {[%emt 00:00:12]} Nxd4
{[%clk 00:13:56]} {[%emt 00:00:08]} 33. Qc3 {[%clk 00:01:57]} {[%emt 00:03:29]}
Re8 {[%clk 00:13:08]} {[%emt 00:01:17]} 34. h3 {[%clk 00:01:36]} {[%emt
00:00:52]} Qe4 {[%clk 00:12:51]} {[%emt 00:00:45]} 35. Rd1 {[%clk 00:01:34]}
{[%emt 00:00:34]} Ne2 {[%clk 00:12:35]} {[%emt 00:00:45]} 36. Qa5 {[%clk
00:01:17]} {[%emt 00:00:48]} d4 {[%clk 00:12:21]} {[%emt 00:00:42]} 37. Qxa7
{[%clk 00:01:06]} {[%emt 00:00:43]} Nf4 {[%clk 00:11:24]} {[%emt 00:01:27]} 0-1

[Event "NJSK 2018 Meisjes AB"]
[Site "Assen, Netherlands"]
[Date "2018.05.04"]
[Round "6.4"]
[White "Verhoeff, Timardi"]
[Black "Waardenburg, Marlinde"]
[Result "1-0"]
[TimeControl "40/90m+30m+30sec/move"]
[WhiteElo "1911"]
[BlackElo "1686"]

1. c4 {[%clk 01:30:58]} {[%emt 00:00:03]} e5 {[%clk 01:30:58]} 2. g3 {[%clk
01:31:18]} {[%emt 00:00:09]} Nc6 {[%clk 01:31:14]} {[%emt 00:00:13]} 3. Bg2
{[%clk 01:31:43]} {[%emt 00:00:05]} f5 {[%clk 01:31:28]} {[%emt 00:00:17]} 4.
e3 {[%clk 01:31:39]} {[%emt 00:00:35]} Nf6 {[%clk 01:29:44]} {[%emt 00:02:13]}
5. Nc3 {[%clk 01:31:43]} {[%emt 00:00:26]} d5 {[%clk 01:27:19]} {[%emt
00:02:55]} 6. d4 {[%clk 01:02:34]} {[%emt 00:29:39]} e4 {[%clk 01:13:12]}
{[%emt 00:14:36]} 7. a3 {[%clk 00:40:27]} {[%emt 00:22:39]} dxc4 {[%clk
01:10:03]} {[%emt 00:03:39]} 8. Qa4 {[%clk 00:39:35]} {[%emt 00:01:23]} Be6
{[%clk 01:03:04]} {[%emt 00:07:28]} 9. f3 {[%clk 00:31:08]} {[%emt 00:08:57]}
Bd5 {[%clk 01:00:25]} {[%emt 00:03:08]} 10. fxe4 {[%clk 00:30:19]} {[%emt
00:01:20]} Nxe4 {[%clk 00:56:07]} {[%emt 00:04:48]} 11. Nxe4 {[%clk 00:29:23]}
{[%emt 00:01:26]} fxe4 {[%clk 00:55:40]} {[%emt 00:00:56]} 12. Ne2 {[%clk
00:28:36]} {[%emt 00:01:17]} Qd7 {[%clk 00:51:21]} {[%emt 00:04:48]} 13. Nf4
{[%clk 00:25:20]} {[%emt 00:03:48]} g5 {[%clk 00:35:13]} {[%emt 00:16:38]} 14.
Nxd5 {[%clk 00:24:44]} {[%emt 00:01:06]} Qxd5 {[%clk 00:35:33]} {[%emt
00:00:10]} 15. Qc2 {[%clk 00:24:37]} {[%emt 00:00:37]} O-O-O {[%clk 00:33:48]}
{[%emt 00:02:14]} 16. Bxe4 {[%clk 00:23:43]} {[%emt 00:01:24]} Nxd4 {[%clk
00:32:44]} {[%emt 00:01:35]} 17. exd4 {[%clk 00:20:50]} {[%emt 00:03:24]} Re8
{[%clk 00:31:35]} {[%emt 00:01:38]} 18. O-O {[%clk 00:15:47]} {[%emt 00:05:34]}
Qxd4+ {[%clk 00:30:29]} {[%emt 00:01:35]} 19. Qf2 {[%clk 00:14:18]} {[%emt
00:01:58]} Qxf2+ {[%clk 00:27:26]} {[%emt 00:03:34]} 20. Kxf2 {[%clk 00:14:42]}
{[%emt 00:00:06]} Rxe4 {[%clk 00:27:45]} {[%emt 00:00:10]} 21. Bxg5 {[%clk
00:14:15]} {[%emt 00:00:58]} Bc5+ {[%clk 00:25:33]} {[%emt 00:02:41]} 22. Kg2
{[%clk 00:09:58]} {[%emt 00:04:48]} Re2+ {[%clk 00:20:55]} {[%emt 00:05:08]} 23.
Kh3 {[%clk 00:10:16]} {[%emt 00:00:11]} Bd4 {[%clk 00:18:48]} {[%emt 00:02:37]}
24. Bc1 {[%clk 00:07:28]} {[%emt 00:03:19]} Rhe8 {[%clk 00:17:08]} {[%emt
00:02:08]} 25. Rd1 {[%clk 00:05:32]} {[%emt 00:02:28]} Bxb2 {[%clk 00:14:23]}
{[%emt 00:03:14]} 26. Bxb2 {[%clk 00:05:40]} {[%emt 00:00:23]} Rxb2 {[%clk
00:14:49]} {[%emt 00:00:03]} 27. Rac1 {[%clk 00:05:34]} {[%emt 00:00:36]} Ree2
{[%clk 00:13:02]} {[%emt 00:02:17]} 28. Rxc4 {[%clk 00:04:47]} {[%emt
00:01:18]} Rxh2 {[%clk 00:13:14]} {[%emt 00:00:17]} 29. Kg4 {[%clk 00:05:12]}
{[%emt 00:00:05]} Rhd2 {[%clk 00:11:11]} {[%emt 00:02:33]} 30. Rh1 {[%clk
00:05:14]} {[%emt 00:00:28]} Rd7 {[%clk 00:08:00]} {[%emt 00:03:41]} 31. Rf4
{[%clk 00:04:47]} {[%emt 00:00:57]} b6 {[%clk 00:07:57]} {[%emt 00:00:33]} 32.
Rf8+ {[%clk 00:04:53]} {[%emt 00:00:25]} Kb7 {[%clk 00:08:14]} {[%emt
00:00:13]} 33. Rh8 {[%clk 00:03:48]} {[%emt 00:01:35]} Rg7+ {[%clk 00:07:01]}
{[%emt 00:01:43]} 34. Kf4 {[%clk 00:03:51]} {[%emt 00:00:27]} Rb3 {[%clk
00:06:55]} {[%emt 00:00:36]} 35. g4 {[%clk 00:03:43]} {[%emt 00:00:38]} Rxa3
{[%clk 00:07:10]} {[%emt 00:00:14]} 36. Rh4 {[%clk 00:03:30]} {[%emt 00:00:43]}
Ra4+ {[%clk 00:04:59]} {[%emt 00:02:41]} 37. Kf5 {[%clk 00:03:52]} {[%emt
00:00:08]} Rf7+ {[%clk 00:04:57]} {[%emt 00:00:31]} 38. Kg5 {[%clk 00:03:29]}
{[%emt 00:00:54]} Rg7+ {[%clk 00:04:28]} {[%emt 00:01:00]} 39. Kf5 {[%clk
00:03:48]} {[%emt 00:00:11]} a5 {[%clk 00:03:50]} {[%emt 00:01:08]} 40. R8xh7
{[%clk 00:03:22]} {[%emt 00:00:56]} Rxh7 {[%clk 00:03:19]} {[%emt 00:01:01]} 41.
Rxh7 {[%clk 00:03:48]} {[%emt 00:00:05]} Rd4 {[%clk 00:28:02]} {[%emt
00:05:45]} 42. g5 {[%clk 00:32:54]} {[%emt 00:01:24]} Rd5+ {[%clk 00:25:57]}
{[%emt 00:02:34]} 43. Kf6 {[%clk 00:26:11]} {[%emt 00:07:15]} Rd6+ {[%clk
00:22:44]} {[%emt 00:03:43]} 44. Kf5 {[%clk 00:24:09]} {[%emt 00:02:32]} Rd5+
{[%clk 00:21:53]} {[%emt 00:01:21]} 45. Kf6 {[%clk 00:16:04]} {[%emt 00:08:35]}
b5 {[%clk 00:07:05]} {[%emt 00:15:18]} 46. g6 {[%clk 00:13:02]} {[%emt
00:03:32]} Rd6+ {[%clk 00:07:24]} {[%emt 00:00:11]} 47. Kf7 {[%clk 00:04:54]}
{[%emt 00:08:37]} Rxg6 {[%clk 00:07:10]} {[%emt 00:00:44]} 48. Kxg6 {[%clk
00:05:16]} {[%emt 00:00:09]} Kb6 {[%clk 00:07:33]} {[%emt 00:00:06]} 49. Kf5
{[%clk 00:05:16]} {[%emt 00:00:30]} c6 {[%clk 00:07:23]} {[%emt 00:00:40]} 50.
Ke4 {[%clk 00:04:58]} {[%emt 00:00:49]} Kc5 {[%clk 00:07:08]} {[%emt 00:00:44]}
51. Rh1 {[%clk 00:03:41]} {[%emt 00:01:47]} a4 {[%clk 00:05:33]} {[%emt
00:02:05]} 52. Kd3 {[%clk 00:03:25]} {[%emt 00:00:47]} b4 {[%clk 00:05:16]}
{[%emt 00:00:47]} 53. Rh5+ {[%clk 00:03:35]} {[%emt 00:00:20]} Kb6 {[%clk
00:04:34]} {[%emt 00:01:12]} 54. Kc4 {[%clk 00:03:52]} {[%emt 00:00:13]} b3
{[%clk 00:04:46]} {[%emt 00:00:18]} 55. Kb4 {[%clk 00:03:59]} {[%emt 00:00:23]}
b2 {[%clk 00:04:06]} {[%emt 00:01:09]} 56. Rh1 {[%clk 00:04:27]} {[%emt
00:00:03]} c5+ {[%clk 00:04:17]} {[%emt 00:00:19]} 57. Kxa4 {[%clk 00:04:52]}
{[%emt 00:00:05]} Kc6 {[%clk 00:03:59]} {[%emt 00:00:47]} 58. Kb3 {[%clk
00:05:14]} {[%emt 00:00:07]} Kd5 {[%clk 00:04:16]} {[%emt 00:00:14]} 59. Kxb2
{[%clk 00:05:39]} {[%emt 00:00:06]} Kd4 {[%clk 00:03:59]} {[%emt 00:00:46]} 60.
Kc2 {[%clk 00:06:02]} {[%emt 00:00:07]} c4 {[%clk 00:04:15]} {[%emt 00:00:13]}
61. Rh4+ {[%clk 00:06:26]} {[%emt 00:00:07]} 1-0

[Event "NJSK 2018 Meisjes AB"]
[Site "Assen, Netherlands"]
[Date "2018.05.04"]
[Round "6.5"]
[White "De Boer, Marit"]
[Black "Woest, Imre"]
[Result "1/2-1/2"]
[TimeControl "40/90m+30m+30sec/move"]
[WhiteElo "1446"]
[BlackElo "1418"]

1. c4 {[%clk 01:30:58]} {[%emt 00:00:02]} e5 {[%clk 01:30:47]} {[%emt
00:00:12]} 2. g3 {[%clk 01:31:21]} {[%emt 00:00:07]} Nf6 {[%clk 01:30:57]}
{[%emt 00:00:20]} 3. Bg2 {[%clk 01:31:38]} {[%emt 00:00:13]} c6 {[%clk
01:31:18]} {[%emt 00:00:09]} 4. Nc3 {[%clk 01:31:32]} {[%emt 00:00:35]} Bc5
{[%clk 01:28:24]} {[%emt 00:03:24]} 5. e3 {[%clk 01:30:16]} {[%emt 00:01:46]}
d5 {[%clk 01:26:52]} {[%emt 00:02:02]} 6. d3 {[%clk 01:28:05]} {[%emt
00:02:41]} O-O {[%clk 01:26:33]} {[%emt 00:00:49]} 7. Nge2 {[%clk 01:27:40]}
{[%emt 00:00:55]} a6 {[%clk 01:17:41]} {[%emt 00:09:23]} 8. a3 {[%clk
01:20:12]} {[%emt 00:07:58]} d4 {[%clk 01:15:54]} {[%emt 00:02:16]} 9. Ne4
{[%clk 01:16:55]} {[%emt 00:03:48]} Nxe4 {[%clk 01:15:31]} {[%emt 00:00:53]} 10.
Bxe4 {[%clk 01:17:01]} {[%emt 00:00:24]} dxe3 {[%clk 01:15:46]} {[%emt
00:00:15]} 11. Bxe3 {[%clk 01:17:08]} {[%emt 00:00:23]} Bxe3 {[%clk 01:16:12]}
{[%emt 00:00:04]} 12. fxe3 {[%clk 01:17:27]} {[%emt 00:00:11]} Qb6 {[%clk
01:12:45]} {[%emt 00:03:57]} 13. Qc1 {[%clk 01:16:06]} {[%emt 00:01:50]} Bh3
{[%clk 01:10:57]} {[%emt 00:02:18]} 14. Ng1 {[%clk 01:06:28]} {[%emt 00:10:09]}
Be6 {[%clk 01:09:16]} {[%emt 00:02:11]} 15. h3 {[%clk 01:02:46]} {[%emt
00:04:10]} f5 {[%clk 01:08:27]} {[%emt 00:01:20]} 16. Bg2 {[%clk 00:59:53]}
{[%emt 00:03:23]} Nd7 {[%clk 01:08:11]} {[%emt 00:00:47]} 17. Ne2 {[%clk
00:58:22]} {[%emt 00:02:01]} Nc5 {[%clk 01:07:21]} {[%emt 00:01:20]} 18. Qc2
{[%clk 00:56:09]} {[%emt 00:02:42]} Rad8 {[%clk 01:02:10]} {[%emt 00:05:42]} 19.
Rd1 {[%clk 00:52:00]} {[%emt 00:04:39]} Nb3 {[%clk 01:01:35]} {[%emt 00:01:06]}
20. Rf1 {[%clk 00:46:09]} {[%emt 00:06:21]} g5 {[%clk 00:56:46]} {[%emt
00:05:18]} 21. Qc3 {[%clk 00:41:07]} {[%emt 00:05:32]} Bc8 {[%clk 00:53:52]}
{[%emt 00:03:24]} 22. d4 {[%clk 00:37:15]} {[%emt 00:04:22]} exd4 {[%clk
00:52:54]} {[%emt 00:01:28]} 23. Nxd4 {[%clk 00:37:31]} {[%emt 00:00:14]} Nxd4
{[%clk 00:46:49]} {[%emt 00:06:35]} 24. Rxd4 {[%clk 00:36:30]} {[%emt
00:01:31]} Qc7 {[%clk 00:44:15]} {[%emt 00:03:05]} 25. Kf2 {[%clk 00:33:19]}
{[%emt 00:03:40]} Rde8 {[%clk 00:40:51]} {[%emt 00:03:54]} 26. Rd3 {[%clk
00:30:40]} {[%emt 00:03:10]} h5 {[%clk 00:35:02]} {[%emt 00:06:19]} 27. Bf3
{[%clk 00:26:20]} {[%emt 00:04:48]} g4 {[%clk 00:35:16]} {[%emt 00:00:17]} 28.
Bg2 {[%clk 00:26:18]} {[%emt 00:00:33]} Kh7 {[%clk 00:33:42]} {[%emt 00:02:03]}
29. h4 {[%clk 00:26:33]} {[%emt 00:00:15]} c5 {[%clk 00:32:03]} {[%emt
00:02:09]} 1/2-1/2